fUSD/lending_fUSD_20250905
["ID","MTS","AMOUNT","RATE_DAILY","PERIOD"]
[383634087,1757051458037,-400.0,0.00024931,2]
[383634088,1757051458047,-400.0,0.00024931,2]
[383634089,1757051458056,-400.0,0.00024931,2]
[383634090,1757051458066,-409.49511908,0.00024931,2]
[383634091,1757051458076,-400.0,0.00024931,2]
[383634092,1757051458086,-400.0,0.00024931,2]
[383634093,1757051458096,-400.0,0.00024931,2]
[383634094,1757051458106,-400.0,0.00024931,2]
[383634095,1757051458116,-400.0,0.00024931,2]
[383634096,1757051458126,-400.0,0.00024931,2]
[383634097,1757051458135,-400.0,0.00024931,2]
[383634098,1757051458146,-400.0,0.00024931,2]
[383634099,1757051458155,-533.05,0.00024931,2]
[383634100,1757051458165,-400.0,0.00024931,2]
[383634101,1757051458175,-400.0,0.00024931,2]
[383634102,1757051458185,-400.0,0.00024931,2]
[383634103,1757051458195,-400.0,0.00024931,2]
[383634104,1757051458204,-400.0,0.00024931,2]
[383634105,1757051458213,-409.27821604,0.00024931,2]
[383634106,1757051458223,-400.0,0.00024931,2]
[383634107,1757051458233,-400.0,0.00024931,2]
[383634108,1757051458243,-400.0,0.00024931,2]
[383634109,1757051458252,-400.0,0.00024931,2]
[383634110,1757051458262,-400.0,0.00024931,2]
[383634111,1757051458272,-400.0,0.00024931,2]
[383634112,1757051458282,-1000.0,0.00024931,2]
[383634113,1757051458292,-400.0,0.00024931,2]
[383634114,1757051458302,-400.0,0.00024931,2]
[383634115,1757051458312,-400.0,0.00024931,2]
[383634116,1757051458322,-400.0,0.00024931,2]
[383634117,1757051458332,-400.0,0.00024931,2]
[383634118,1757051458342,-400.0,0.00024931,2]
[383634119,1757051458352,-1094.46,0.00024931,2]
[383634120,1757051458362,-150.98905012,0.00024931,2]
[383634121,1757051458372,-467.12017874,0.00024931,2]
[383634122,1757051458381,-400.0,0.00024931,2]
[383634123,1757051458391,-400.0,0.00024931,2]
[383634124,1757051458405,-400.0,0.00024931,2]
[383634125,1757051458541,-379.66820358,0.00024931,2]
[383634126,1757051458566,-400.0,0.00024931,2]
[383634127,1757051458576,-408.6001336,0.00024931,2]
[383634128,1757051458585,-406.56972128,0.00024931,2]
[383634129,1757051458595,-400.0,0.00024931,2]
[383634130,1757051458604,-458.47,0.00024931,2]
[383634131,1757051458614,-400.0,0.00024931,2]
[383634132,1757051458623,-411.69930321,0.00024931,2]
[383634133,1757051458633,-400.0,0.00024931,2]
[383634134,1757051458642,-400.0,0.00024931,2]
[383634135,1757051458652,-423.98,0.00024931,2]
[383634136,1757051458662,-400.0,0.00024931,2]
[383634137,1757051458671,-400.0,0.00024931,2]
[383634138,1757051458680,-400.0,0.00024931,2]
[383634139,1757051458690,-400.0,0.00024931,2]
[383634140,1757051458699,-400.0,0.00024931,2]
[383634141,1757051458708,-400.0,0.00024931,2]
[383634142,1757051458718,-400.0,0.00024931,2]
[383634143,1757051458727,-400.0,0.00024931,2]
[383634144,1757051458737,-400.0,0.00024931,2]
[383634145,1757051458746,-400.0,0.00024931,2]
[383634146,1757051458756,-400.0,0.00024931,2]
[383634147,1757051458766,-400.0,0.00024931,2]
[383634148,1757051458775,-400.0,0.00024931,2]
[383634149,1757051458785,-411.24877924,0.00024931,2]
[383634150,1757051458794,-400.0,0.00024931,2]
[383634151,1757051458803,-417.81225344,0.00024931,2]
[383634152,1757051458813,-400.0,0.00024931,2]
[383634153,1757051458822,-400.0,0.00024931,2]
[383634154,1757051458831,-400.0,0.00024931,2]
[383634155,1757051458840,-635.0,0.00024931,2]
[383634156,1757051458850,-293.60533792,0.00024931,2]
[383634157,1757051458859,-408.74023623,0.00024931,2]
[383634158,1757051458868,-400.0,0.00024931,2]
[383634159,1757051458877,-179.94643521,0.00024931,2]
[383634160,1757051458887,-400.0,0.00024931,2]
[383634161,1757051458896,-400.0,0.00024931,2]
[383634162,1757051458906,-214.17257589,0.00024931,2]
[383634163,1757051458915,-1014.88390865,0.00024931,2]
[383634164,1757051458925,-400.0,0.00024931,2]
[383634165,1757051458934,-400.0,0.00024931,2]
[383634166,1757051458944,-400.0,0.00024931,2]
[383634167,1757051458953,-400.0,0.00024931,2]
[383634168,1757051458962,-390.28222866,0.00024931,2]
[383634169,1757051458971,-400.0,0.00024931,2]
[383634170,1757051458980,-188.27634439,0.00024931,2]
[383634171,1757051458990,-400.0,0.00024931,2]
[383634172,1757051458999,-400.0,0.00024931,2]
[383634173,1757051459008,-400.0,0.00024931,2]
[383634174,1757051459018,-400.0,0.00024931,2]
[383634175,1757051459028,-400.0,0.00024931,2]
[383634176,1757051459038,-400.0,0.00024931,2]
[383634177,1757051459047,-400.0,0.00024931,2]
[383634178,1757051459056,-400.0,0.00024931,2]
[383634179,1757051459066,-405.24188089,0.00024931,2]
[383634180,1757051459075,-400.0,0.00024931,2]
[383634181,1757051459085,-400.0,0.00024931,2]
[383634182,1757051459094,-400.0,0.00024931,2]
[383634183,1757051459104,-400.0,0.00024931,2]
[383634184,1757051459113,-400.0,0.00024931,2]
[383634185,1757051459123,-400.0,0.00024931,2]
[383634186,1757051459132,-400.0,0.00024931,2]
[383634187,1757051459142,-400.0,0.00024931,2]
[383634188,1757051459153,-436.85372777,0.00024931,2]
[383634189,1757051459162,-400.0,0.00024931,2]
[383634190,1757051459172,-454.7674727,0.00024931,2]
[383634191,1757051459181,-400.0,0.00024931,2]
[383634192,1757051459191,-406.56401063,0.00024931,2]
[383634193,1757051459200,-400.0,0.00024931,2]
[383634194,1757051459210,-400.0,0.00024931,2]
[383634195,1757051459219,-400.0,0.00024931,2]
[383634196,1757051459228,-400.0,0.00024931,2]
[383634197,1757051459238,-470.34839056,0.00024931,2]
[383634198,1757051459247,-400.0,0.00024931,2]
[383634199,1757051459257,-400.0,0.00024931,2]
[383634200,1757051459266,-400.0,0.00024931,2]
[383634201,1757051459275,-400.0,0.00024931,2]
[383634202,1757051459284,-481.62147991,0.00024931,2]
[383634203,1757051459294,-531.46,0.00024931,2]
[383634204,1757051459303,-747.32,0.00024931,2]
[383634205,1757051459312,-298.06455204,0.00024931,2]
[383634206,1757051459322,-400.0,0.00024931,2]
[383634207,1757051459332,-411.03889453,0.00024931,2]
[383634208,1757051459342,-400.0,0.00024931,2]
[383634209,1757051459351,-400.0,0.00024931,2]
[383634210,1757051459361,-405.40962854,0.00024931,2]
[383634211,1757051459371,-400.0,0.00024931,2]
[383634212,1757051459380,-400.0,0.00024931,2]
[383634213,1757051459389,-400.0,0.00024931,2]
[383634214,1757051459401,-400.0,0.00024931,2]
[383634215,1757051459411,-400.0,0.00024931,2]
[383634216,1757051459420,-2971.25,0.00024931,2]
[383634217,1757051459429,-400.0,0.00024931,2]
[383634218,1757051459439,-400.0,0.00024931,2]
[383634219,1757051459448,-1141.89,0.00024931,2]
[383634220,1757051459458,-400.0,0.00024931,2]
[383634221,1757051459467,-400.0,0.00024931,2]
[383634222,1757051459476,-400.0,0.00024931,2]
[383634223,1757051459485,-400.0,0.00024931,2]
[383634224,1757051459495,-400.0,0.00024931,2]
[383634225,1757051459504,-409.24397884,0.00024931,2]
[383634226,1757051459513,-400.0,0.00024931,2]
[383634227,1757051459523,-400.0,0.00024931,2]
[383634228,1757051459532,-400.0,0.00024931,2]
[383634229,1757051459542,-400.0,0.00024931,2]
[383634230,1757051459551,-164.35904569,0.00024931,2]
[383634231,1757051459560,-400.0,0.00024931,2]
[383634232,1757051459570,-400.0,0.00024931,2]
[383634233,1757051459580,-400.0,0.00024931,2]
[383634234,1757051459589,-400.0,0.00024931,2]
[383634235,1757051459599,-400.0,0.00024931,2]
[383634236,1757051459608,-400.0,0.00024931,2]
[383634237,1757051459617,-400.0,0.00024931,2]
[383634238,1757051459627,-460.5,0.00024931,2]
[383634239,1757051459637,-400.0,0.00024931,2]
[383634240,1757051459646,-400.0,0.00024931,2]
[383634241,1757051459655,-400.0,0.00024931,2]
[383634242,1757051459665,-400.0,0.00024931,2]
[383634243,1757051459674,-400.0,0.00024931,2]
[383634244,1757051459683,-469.34662036,0.00024931,2]
[383634245,1757051459693,-400.0,0.00024931,2]
[383634246,1757051459702,-400.0,0.00024931,2]
[383634247,1757051459712,-400.0,0.00024931,2]
[383634248,1757051459721,-400.0,0.00024931,2]
[383634249,1757051459730,-400.0,0.00024931,2]
[383634250,1757051459740,-400.0,0.00024931,2]
[383634251,1757051459749,-217.0,0.00024932,7]
[383634252,1757051459759,-150.0,0.00024948,3]
[383634253,1757051459769,-160.0,0.00024949,2]
[383634254,1757051459778,-160.0,0.00024949,2]
[383634255,1757051459787,-160.0,0.00024949,2]
[383634256,1757051459797,-212.63008182,0.0002495,2]
[383634257,1757051459806,-500.0,0.00024973,2]
[383634258,1757051459815,-502.26869561,0.00024973,2]
[383634259,1757051459824,-502.80008317,0.00024973,2]
[383634260,1757051459833,-500.62851363,0.00024973,2]
[383634261,1757051459843,-151.03087859,0.00024973,2]
[383634262,1757051459852,-625.336,0.00024978,2]
[383634263,1757051459861,-3394.823,0.00024978,2]
[383634264,1757051459870,-926.286,0.00024978,2]
[383634265,1757051459879,-1581.357,0.00024978,2]
[383634266,1757051459889,-568.548,0.00024978,2]
[383634267,1757051459898,-1303.545,0.00024978,2]
[383634268,1757051459907,-21153.0,0.00024978,2]
[383634269,1757051459916,-4163.0,0.00024978,2]
[383634270,1757051459926,-896.0,0.00024978,2]
[383634271,1757051459935,-150.0,0.00024978,2]
[383634272,1757051459944,-5000.0,0.00025,3]
[383634273,1757051459953,-443.63,0.00025,7]
[383634274,1757051459962,-4406.9,0.00025,7]
[383634275,1757051459971,-824.85,0.00025,7]
[383634276,1757051459981,-2000.99691032,0.00025,3]
[383634277,1757051459990,-217.0,0.00025,7]
[383634278,1757051460000,-514.736181,0.00025,7]
[383634279,1757051460009,-5795.0,0.00025066,2]
[383634280,1757051460019,-5795.0,0.00025068,2]
[383634281,1757051460029,-5815.69,0.0002507,2]
[383634282,1757051460038,-666.15513616,0.00025079,10]
[383634283,1757051460048,-267.46074303,0.00025083,2]
[383634284,1757051460058,-6932.20085305,0.00025085,2]
[383634285,1757051460067,-11085.37012338,0.00025085,2]
[383634286,1757051460076,-200.0,0.000251,7]
[383634287,1757051460086,-500.0,0.00025117,2]
[383634288,1757051460096,-468.65751276,0.00025117,2]
[383634289,1757051460105,-500.0,0.0002513,14]
[383634290,1757051460115,-3010.69135387,0.0002517,7]
[383634291,1757051460125,-519.87310342,0.00025204,2]
[383634292,1757051460134,-500.0,0.00025204,2]
[383634293,1757051460143,-500.0,0.00025204,2]
[383634294,1757051460153,-500.0,0.00025204,2]
[383634295,1757051460162,-500.0,0.00025204,2]
[383634296,1757051460172,-400.0,0.00025205,2]
[383634297,1757051460181,-400.0,0.00025205,2]
[383634298,1757051460191,-400.0,0.00025205,2]
[383634299,1757051460200,-400.0,0.00025205,2]
[383634300,1757051460210,-400.0,0.00025205,2]
[383634301,1757051460219,-400.0,0.00025205,2]
[383634302,1757051460228,-400.0,0.00025205,2]
[383634303,1757051460237,-411.52674442,0.00025205,2]
[383634304,1757051460247,-400.0,0.00025205,2]
[383634305,1757051460255,-400.0,0.00025205,2]
[383634306,1757051460264,-400.0,0.00025205,2]
[383634307,1757051460274,-400.0,0.00025205,2]
[383634308,1757051460283,-400.0,0.00025205,2]
[383634309,1757051460292,-179.3894343,0.00025205,2]
[383634310,1757051460301,-400.0,0.00025205,2]
[383634311,1757051460310,-400.0,0.00025205,2]
[383634312,1757051460319,-408.92128926,0.00025205,2]
[383634313,1757051460328,-400.0,0.00025205,2]
[383634314,1757051460337,-400.0,0.00025205,2]
[383634315,1757051460346,-447.42300568,0.00025205,2]
[383634316,1757051460356,-400.0,0.00025205,2]
[383634317,1757051460365,-225.52231699,0.00025205,2]
[383634318,1757051460374,-406.55605092,0.00025205,2]
[383634319,1757051460383,-400.0,0.00025205,2]
[383634320,1757051460395,-400.0,0.00025205,2]
[383634321,1757051460408,-400.0,0.00025205,2]
[383634322,1757051460418,-400.0,0.00025205,2]
[383634323,1757051460427,-400.0,0.00025205,2]
[383634324,1757051460436,-406.77507897,0.00025205,2]
[383634325,1757051460452,-400.0,0.00025205,2]
[383634326,1757051460467,-400.0,0.00025205,2]
[383634327,1757051460477,-234.88263238,0.00025205,2]
[383634328,1757051460486,-411.41238523,0.00025205,2]
[383634329,1757051460495,-400.0,0.00025205,2]
[383634330,1757051460503,-400.0,0.00025205,2]
[383634331,1757051460513,-400.0,0.00025205,2]
[383634332,1757051460522,-400.0,0.00025205,2]
[383634333,1757051460531,-400.0,0.00025205,2]
[383634334,1757051460540,-400.0,0.00025205,2]
[383634335,1757051460549,-400.0,0.00025205,2]
[383634336,1757051460558,-400.0,0.00025205,2]
[383634337,1757051460567,-400.0,0.00025205,2]
[383634338,1757051460576,-400.0,0.00025205,2]
[383634339,1757051460585,-400.0,0.00025205,2]
[383634340,1757051460595,-400.0,0.00025205,2]
[383634341,1757051460604,-400.0,0.00025205,2]
[383634342,1757051460613,-408.96775611,0.00025205,2]
[383634343,1757051460622,-400.0,0.00025205,2]
[383634344,1757051460631,-400.0,0.00025205,2]
[383634345,1757051460640,-400.0,0.00025205,2]
[383634346,1757051460650,-400.0,0.00025205,2]
[383634347,1757051460659,-400.0,0.00025205,2]
[383634348,1757051460668,-404.7623811,0.00025205,2]
[383634349,1757051460677,-400.0,0.00025205,2]
[383634350,1757051460686,-404.88360817,0.00025205,2]
[383634351,1757051460696,-400.0,0.00025205,2]
[383634352,1757051460705,-400.0,0.00025205,2]
[383634353,1757051460715,-400.0,0.00025205,2]
[383634354,1757051460724,-400.0,0.00025205,2]
[383634355,1757051460733,-400.0,0.00025205,2]
[383634356,1757051460742,-400.0,0.00025205,2]
[383634357,1757051460751,-400.0,0.00025205,2]
[383634358,1757051460760,-406.98143076,0.00025205,2]
[383634359,1757051460769,-400.0,0.00025205,2]
[383634360,1757051460778,-400.0,0.00025205,2]
[383634361,1757051460787,-400.0,0.00025205,2]
[383634362,1757051460797,-400.0,0.00025205,2]
[383634363,1757051460806,-414.52021665,0.00025205,2]
[383634364,1757051460815,-400.0,0.00025205,2]
[383634365,1757051460825,-400.0,0.00025205,2]
[383634366,1757051460835,-400.0,0.00025205,2]
[383634367,1757051460844,-400.0,0.00025205,2]
[383634368,1757051460853,-400.0,0.00025205,2]
[383634369,1757051460862,-400.0,0.00025205,2]
[383634370,1757051460871,-400.0,0.00025205,2]
[383634371,1757051460881,-400.0,0.00025205,2]
[383634372,1757051460890,-400.0,0.00025205,2]
[383634373,1757051460899,-400.0,0.00025205,2]
[383634374,1757051460908,-400.0,0.00025205,2]
[383634375,1757051460917,-400.0,0.00025205,2]
[383634376,1757051460926,-400.0,0.00025205,2]
[383634377,1757051460935,-400.0,0.00025205,2]
[383634378,1757051460944,-400.0,0.00025205,2]
[383634379,1757051460954,-400.0,0.00025205,2]
[383634380,1757051460962,-400.0,0.00025205,2]
[383634381,1757051460972,-400.0,0.00025205,2]
[383634382,1757051460982,-400.0,0.00025205,2]
[383634383,1757051460991,-400.0,0.00025205,2]
[383634384,1757051460999,-400.0,0.00025205,2]
[383634385,1757051461009,-408.73362577,0.00025205,2]
[383634386,1757051461018,-400.0,0.00025205,2]
[383634387,1757051461028,-400.0,0.00025205,2]
[383634388,1757051461037,-400.0,0.00025205,2]
[383634389,1757051461047,-400.0,0.00025205,2]
[383634390,1757051461056,-400.0,0.00025205,2]
[383634391,1757051461065,-400.0,0.00025205,2]
[383634392,1757051461075,-433.27654186,0.00025205,2]
[383634393,1757051461084,-499.70145939,0.00025205,2]
[383634394,1757051461093,-416.38947842,0.00025205,2]
[383634395,1757051461102,-400.0,0.00025205,2]
[383634396,1757051461111,-400.0,0.00025205,2]
[383634397,1757051461121,-400.0,0.00025205,2]
[383634398,1757051461129,-400.0,0.00025205,2]
[383634399,1757051461139,-425.37816115,0.00025205,2]
[383634400,1757051461148,-400.0,0.00025205,2]
[383634401,1757051461157,-400.0,0.00025205,2]
[383634402,1757051461166,-400.0,0.00025205,2]
[383634403,1757051461175,-412.09865059,0.00025205,2]
[383634404,1757051461185,-400.0,0.00025205,2]
[383634405,1757051461195,-400.0,0.00025205,2]
[383634406,1757051461204,-400.0,0.00025205,2]
[383634407,1757051461213,-400.0,0.00025205,2]
[383634408,1757051461222,-400.0,0.00025205,2]
[383634409,1757051461232,-280.15259939,0.00025205,2]
[383634410,1757051461241,-400.0,0.00025205,2]
[383634411,1757051461250,-400.0,0.00025205,2]
[383634412,1757051461260,-400.0,0.00025205,2]
[383634413,1757051461269,-400.0,0.00025205,2]
[383634414,1757051461279,-203.47649974,0.00025205,2]
[383634415,1757051461288,-400.0,0.00025205,2]
[383634416,1757051461297,-400.0,0.00025205,2]
[383634417,1757051461306,-400.0,0.00025205,2]
[383634418,1757051461316,-400.0,0.00025205,2]
[383634419,1757051461325,-461.31166442,0.00025205,2]
[383634420,1757051461335,-400.0,0.00025205,2]
[383634421,1757051461344,-400.0,0.00025205,2]
[383634422,1757051461353,-400.0,0.00025205,2]
[383634423,1757051461363,-408.87928608,0.00025205,2]
[383634424,1757051461372,-410.38850018,0.00025205,2]
[383634425,1757051461381,-400.0,0.00025205,2]
[383634426,1757051461390,-400.0,0.00025205,2]
[383634427,1757051461402,-400.0,0.00025205,2]
[383634428,1757051461411,-400.0,0.00025205,2]
[383634429,1757051461420,-400.0,0.00025205,2]
[383634430,1757051461430,-400.0,0.00025205,2]
[383634431,1757051461439,-400.0,0.00025205,2]
[383634432,1757051461448,-400.0,0.00025205,2]
[383634433,1757051461457,-400.0,0.00025205,2]
[383634434,1757051461466,-400.0,0.00025205,2]
[383634435,1757051461476,-400.0,0.00025205,2]
[383634436,1757051461486,-400.0,0.00025205,2]
[383634437,1757051461495,-400.0,0.00025205,2]
[383634438,1757051461505,-400.0,0.00025205,2]
[383634439,1757051461515,-400.0,0.00025205,2]
[383634440,1757051461524,-439.13414884,0.00025205,2]
[383634441,1757051461534,-400.0,0.00025205,2]
[383634442,1757051461543,-407.61889479,0.00025205,2]
[383634443,1757051461552,-400.0,0.00025205,2]
[383634444,1757051461561,-400.0,0.00025205,2]
[383634445,1757051461570,-400.0,0.00025205,2]
[383634446,1757051461580,-400.0,0.00025205,2]
[383634447,1757051461589,-400.0,0.00025205,2]
[383634448,1757051461598,-400.0,0.00025205,2]
[383634449,1757051461607,-400.0,0.00025205,2]
[383634450,1757051461616,-400.0,0.00025205,2]
[383634451,1757051461626,-400.0,0.00025205,2]
[383634452,1757051461635,-400.0,0.00025205,2]
[383634453,1757051461644,-410.04449186,0.00025205,2]
[383634454,1757051461653,-400.0,0.00025205,2]
[383634455,1757051461663,-400.0,0.00025205,2]
[383634456,1757051461818,-417.43962993,0.00025205,2]
[383634457,1757051461828,-481.35345856,0.00025205,2]
[383634458,1757051461837,-400.0,0.00025205,2]
[383634459,1757051461847,-400.0,0.00025205,2]
[383634460,1757051461856,-202.19334015,0.00025205,2]
[383634461,1757051461865,-400.0,0.00025205,2]
[383634462,1757051461874,-452.62340513,0.00025205,2]
[383634463,1757051461883,-400.0,0.00025205,2]
[383634464,1757051461893,-400.0,0.00025205,2]
[383634465,1757051461903,-400.0,0.00025205,2]
[383634466,1757051461912,-400.0,0.00025205,2]
[383634467,1757051461922,-400.0,0.00025205,2]
[383634468,1757051461931,-400.0,0.00025205,2]
[383634469,1757051461941,-400.0,0.00025205,2]
[383634470,1757051461950,-400.0,0.00025205,2]
[383634471,1757051461959,-400.0,0.00025205,2]
[383634472,1757051461968,-528.22016429,0.00025205,2]
[383634473,1757051461977,-411.01463571,0.00025205,2]
[383634474,1757051461987,-400.0,0.00025205,2]
[383634475,1757051461996,-400.0,0.00025205,2]
[383634476,1757051462005,-400.0,0.00025205,2]
[383634477,1757051462015,-400.0,0.00025205,2]
[383634478,1757051462026,-400.0,0.00025205,2]
[383634479,1757051462035,-400.0,0.00025205,2]
[383634480,1757051462045,-400.0,0.00025205,2]
[383634481,1757051462054,-293.22050988,0.00025205,2]
[383634482,1757051462064,-400.0,0.00025205,2]
[383634483,1757051462074,-400.0,0.00025205,2]
[383634484,1757051462083,-400.0,0.00025205,2]
[383634485,1757051462092,-400.0,0.00025205,2]
[383634486,1757051462102,-546.13978655,0.00025205,2]
[383634487,1757051462111,-400.0,0.00025205,2]
[383634488,1757051462121,-400.0,0.00025205,2]
[383634489,1757051462130,-520.97532212,0.00025205,2]
[383634490,1757051462139,-409.7465209,0.00025205,2]
[383634491,1757051462149,-400.0,0.00025205,2]
[383634492,1757051462158,-442.25756178,0.00025205,2]
[383634493,1757051462168,-400.0,0.00025205,2]
[383634494,1757051462178,-400.0,0.00025205,2]
[383634495,1757051462187,-400.0,0.00025205,2]
[383634496,1757051462197,-432.97291266,0.00025205,2]
[383634497,1757051462206,-516.22471985,0.00025205,2]
[383634498,1757051462215,-422.17563594,0.00025205,2]
[383634499,1757051462225,-400.0,0.00025205,2]
[383634500,1757051462235,-400.0,0.00025205,2]
[383634501,1757051462244,-520.02,0.00025205,2]
[383634502,1757051462254,-166.02865379,0.00025205,2]
[383634503,1757051462263,-428.76066213,0.00025205,2]
[383634504,1757051462274,-296.77673854,0.00025205,2]
[383634505,1757051462284,-400.0,0.00025205,2]
[383634506,1757051462293,-400.0,0.00025205,2]
[383634507,1757051462303,-405.62451229,0.00025205,2]
[383634508,1757051462313,-199.88022448,0.00025205,2]
[383634509,1757051462323,-400.0,0.00025205,2]
[383634510,1757051462332,-276.12,0.00025205,2]
[383634511,1757051462341,-400.0,0.00025205,2]
[383634512,1757051462351,-408.0974691,0.00025205,2]
[383634513,1757051462361,-249.53700618,0.00025205,2]
[383634514,1757051462370,-309.95,0.00025205,2]
[383634515,1757051462380,-272.80198453,0.00025205,2]
[383634516,1757051462390,-400.0,0.00025205,2]
[383634517,1757051462400,-400.0,0.00025205,2]
[383634518,1757051462411,-539.9,0.00025205,2]
[383634519,1757051462421,-400.0,0.00025205,2]
[383634520,1757051462431,-400.0,0.00025205,2]
[383634521,1757051462441,-400.0,0.00025205,2]
[383634522,1757051462451,-183.9094787,0.00025205,2]
[383634523,1757051462460,-400.0,0.00025205,2]
[383634524,1757051462470,-400.0,0.00025205,2]
[383634525,1757051462482,-400.0,0.00025205,2]
[383634526,1757051462492,-531.34394507,0.00025205,2]
[383634527,1757051462502,-400.0,0.00025205,2]
[383634528,1757051462511,-409.08447274,0.00025205,2]
[383634529,1757051462521,-400.0,0.00025205,2]
[383634530,1757051462530,-400.0,0.00025205,2]
[383634531,1757051462540,-182.75985592,0.00025205,2]
[383634532,1757051462550,-511.25795135,0.00025205,2]
[383634533,1757051462560,-400.0,0.00025205,2]
[383634534,1757051462570,-400.0,0.00025205,2]
[383634535,1757051462579,-313.67698253,0.00025205,2]
[383634536,1757051462589,-168.69506078,0.00025205,2]
[383634537,1757051462598,-400.0,0.00025205,2]
[383634538,1757051462608,-400.0,0.00025205,2]
[383634539,1757051462617,-400.0,0.00025205,2]
[383634540,1757051462626,-400.0,0.00025205,2]
[383634541,1757051462635,-400.0,0.00025205,2]
[383634542,1757051462645,-400.0,0.00025205,2]
[383634543,1757051462655,-538.65,0.00025205,2]
[383634544,1757051462666,-400.0,0.00025205,2]
[383634545,1757051462676,-400.0,0.00025205,2]
[383634546,1757051462685,-400.0,0.00025205,2]
[383634547,1757051462695,-400.0,0.00025205,2]
[383634548,1757051462704,-400.0,0.00025205,2]
[383634549,1757051462713,-400.0,0.00025205,2]
[383634550,1757051462723,-400.0,0.00025205,2]
[383634551,1757051462732,-400.0,0.00025205,2]
[383634552,1757051462742,-400.0,0.00025205,2]
[383634553,1757051462751,-400.0,0.00025205,2]
[383634554,1757051462761,-400.0,0.00025205,2]
[383634555,1757051462771,-400.0,0.00025205,2]
[383634556,1757051462781,-1249.39,0.00025205,2]
[383634557,1757051462790,-376.85095048,0.00025205,2]
[383634558,1757051462800,-402.13598918,0.00025205,2]
[383634559,1757051462810,-400.0,0.00025205,2]
[383634560,1757051462820,-400.0,0.00025205,2]
[383634561,1757051462830,-443.96712052,0.00025205,2]
[383634562,1757051462840,-400.0,0.00025205,2]
[383634563,1757051462850,-400.0,0.00025205,2]
[383634564,1757051462859,-400.0,0.00025205,2]
[383634565,1757051462869,-152.61379192,0.00025205,2]
[383634566,1757051462878,-400.0,0.00025205,2]
[383634567,1757051462887,-400.0,0.00025205,2]
[383634568,1757051462896,-471.51034967,0.00025205,2]
[383634569,1757051462906,-400.0,0.00025205,2]
[383634570,1757051462916,-400.0,0.00025205,2]
[383634571,1757051462925,-425.85640699,0.00025205,2]
[383634572,1757051462934,-400.0,0.00025205,2]
[383634573,1757051462944,-400.0,0.00025205,2]
[383634574,1757051462953,-400.0,0.00025205,2]
[383634575,1757051462963,-400.0,0.00025205,2]
[383634576,1757051462972,-400.0,0.00025205,2]
[383634577,1757051462982,-400.0,0.00025205,2]
[383634578,1757051462991,-400.0,0.00025205,2]
[383634579,1757051463000,-400.0,0.00025205,2]
[383634580,1757051463010,-400.0,0.00025205,2]
[383634581,1757051463021,-400.0,0.00025205,2]
[383634582,1757051463030,-400.0,0.00025205,2]
[383634583,1757051463039,-400.0,0.00025205,2]
[383634584,1757051463048,-400.0,0.00025205,2]
[383634585,1757051463058,-400.0,0.00025205,2]
[383634586,1757051463068,-400.0,0.00025205,2]